fUST/lending_fUST_20240119
["ID","MTS","AMOUNT","RATE_DAILY","PERIOD"]
[312063661,1705593699515,-154.95351395,0.00024991,4]
[312063662,1705593699536,-643.9449239,0.00024992,2]
[312063663,1705593699556,-154.95351395,0.00024993,2]
[312063664,1705593699576,-678.05962952,0.00024994,2]
[312063665,1705593699596,-2282.08841868,0.00024995,2]
[312063668,1705593710649,-8243.78409377,0.00024995,2]
[312063669,1705593710670,-2000.60964202,0.00024996,2]
[312063670,1705593710691,-21671.8470958,0.00024998,2]
[312063671,1705593710712,-701.11141564,0.00025,2]
[312063672,1705593710733,-11128.65307551,0.00025,2]
[312063673,1705593710754,-1001.4119325,0.00025,2]
[312063674,1705593710774,-4718.82684458,0.00025,2]
[312063675,1705593710795,-2093.74877759,0.00025297,2]
[312063676,1705593710816,-165.90071,0.00026475,2]
[312063677,1705593710837,-166.666666,0.00026479,2]
[312063678,1705593710858,-5951.62,0.00026598,3]
[312063679,1705593710879,-24900.0,0.00026608,2]
[312063680,1705593710899,-166.666666,0.00027201,2]
[312063681,1705593710921,-200.0,0.00027499,15]
[312063682,1705593710942,-15614.83727926,0.000275,2]
[312063683,1705593710963,-166.666666,0.00027923,2]
[312063684,1705593710989,-6539.94705553,0.00028,2]
[312063685,1705593711010,-166.666666,0.00028645,2]
[312063686,1705593711030,-7889.88528419,0.00028749,2]
[312063687,1705593711053,-155.0,0.00029,2]
[312063688,1705593711074,-166.666666,0.00029367,2]
[312063689,1705593711096,-2455.73923901,0.00029397,2]
[312063690,1705593711116,-2639.73205644,0.00029398,2]
[312063691,1705593711137,-694.38017091,0.00029698,2]
[312063692,1705593711157,-406.08420108,0.000299,2]
[312063693,1705593711892,290.00241025,0.00028,2]
[312063695,1705593715546,154.95351395,0.00026998,4]
[312063697,1705593729894,288.79646793,0.00028498,2]
[312063698,1705593730798,5684.0414868,0.00029698,2]
[312063699,1705593733562,154.95351395,0.00026998,4]
[312063704,1705593755556,154.95351395,0.00026998,4]
[312063713,1705593771572,154.95351395,0.00026998,4]
[312063717,1705593785442,154.95351395,0.00026998,2]
[312063718,1705593795565,154.95351395,0.00026998,4]
[312063719,1705593802173,154.95351395,0.00026998,2]
[312063720,1705593815571,154.95351395,0.00026998,4]
[312063721,1705593818191,222.5109461,0.00026998,2]
[312063723,1705593835569,154.95351395,0.00026998,4]
[312064209,1705594232550,-154.95351395,0.00026636,2]
[312064211,1705594232559,-154.95351395,0.00026637,4]
[312064213,1705594232569,-154.95351395,0.00026638,2]
[312064215,1705594232578,-2706.81871545,0.00026648,5]
[312064217,1705594232588,-5096.8388151,0.00026649,2]
[312064219,1705594232597,-662.07674282,0.00026998,2]
[312064221,1705594232606,-192.82732,0.00027934,2]
[312064223,1705594232615,-24900.0,0.00027935,2]
[312064225,1705594232625,-166.666666,0.00028505,2]
[312064227,1705594232634,-155.0,0.00029,2]
[312064229,1705594232643,-2455.73923901,0.00029,2]
[312064230,1705594232653,-166.666666,0.00029282,2]
[312064232,1705594232662,-155.29605261,0.000299,2]
[312064234,1705594232671,-4959.68,0.00029988,3]
[312064236,1705594232681,-4133.07,0.00029988,3]
[312064238,1705594232690,-156.20380445,0.00029996,2]
[312064240,1705594232699,-2110.9702824,0.00029996,2]
[312064242,1705594232711,-569.88082184,0.00029996,2]
[312064244,1705594232720,-156.41283895,0.00029996,2]
[312064246,1705594232729,-155.09608849,0.00029996,2]
[312064248,1705594232738,-258.65098072,0.00029996,2]
[312064249,1705594232747,-155.43980469,0.00029996,2]
[312064251,1705594232758,-309.82961307,0.00029996,2]
[312064252,1705594232766,-298.07252372,0.00029996,2]
[312064254,1705594232776,-222.27499817,0.00029997,2]
[312064256,1705594232786,-482.24476677,0.00029998,2]
[312064257,1705594232800,-155.00310006,0.00029998,2]
[312064258,1705594232809,-420.59320711,0.00029998,2]
[312064259,1705594232820,-686.6489252,0.00029998,2]
[312064260,1705594232830,-266.50001777,0.00029998,2]
[312064262,1705594232839,-155.00310006,0.00029998,2]
[312064263,1705594232848,-260.75400073,0.00029998,2]
[312064265,1705594232857,-1195.46446057,0.00029998,2]
[312064266,1705594232865,-272.04729889,0.00029998,2]
[312064267,1705594232874,-1735.58180168,0.00029998,2]
[312064269,1705594232884,-328.87291893,0.00029998,2]
[312064271,1705594232893,-1221.57018504,0.00029998,2]
[312064273,1705594232901,-1251.45335161,0.00029998,2]
[312064274,1705594232910,-155.00310006,0.00029998,2]
[312064276,1705594232919,-164.08761243,0.00029998,2]
[312064278,1705594232929,-260.47007699,0.00029998,2]
[312064280,1705594232938,-935.15218072,0.00029998,2]
[312064282,1705594232949,-301.18213313,0.00029998,2]
[312064283,1705594232961,-3740.30326134,0.00029998,2]
[312064284,1705594232971,-167.06889117,0.00029998,2]
[312064286,1705594232980,-227.83997944,0.00029998,2]
[312064287,1705594232989,-190.92884081,0.00029998,2]
[312064288,1705594232999,-155.20238208,0.00029998,2]
[312064289,1705594233008,-156.20759517,0.00029998,2]
[312064290,1705594233018,-701.95047309,0.00029998,2]
[312064291,1705594233027,-1291.57807305,0.00029998,2]
[312064292,1705594233037,-200.98315984,0.00029998,2]
[312064293,1705594233046,-164.13059612,0.00029998,2]
[312064294,1705594233055,-285.86450988,0.00029998,2]
[312064295,1705594233065,-33680.12839117,0.00029998,2]
[312064336,1705594238585,-640.30302664,0.00029988,3]
[312064344,1705594238653,-2803.91697336,0.00029988,3]
[312064347,1705594238676,-889.97496071,0.00029998,2]
[312064350,1705594238695,-159.61834637,0.00029998,2]
[312064353,1705594238712,-322.63107755,0.00029998,2]
[312064356,1705594238728,-848.51221584,0.00029998,2]
[312064358,1705594238742,-310.88585753,0.00029998,2]
[312064361,1705594238755,-1693.74494191,0.00029998,2]
[312064363,1705594238768,-641.55706452,0.00029998,2]
[312064366,1705594238782,-828.68224376,0.00029998,2]
[312064379,1705594238908,-154.97629517,0.00029998,2]
[312064382,1705594238924,-4578.24837601,0.00029998,2]
[312064384,1705594238935,-132.57661869,0.00029998,2]
[312064386,1705594238945,-6984.37015115,0.00029998,2]
[312064388,1705594238954,-2096.87073537,0.00029998,3]
[312064390,1705594238968,-166.65048801,0.00029999,2]
[312064392,1705594238978,-10465.43231629,0.00029999,2]
[312064394,1705594238987,-179.68230612,0.0003,3]
[312064396,1705594238996,-14621.81765674,0.0003,2]
[312064399,1705594239006,-6192.60917587,0.0003,2]
[312064401,1705594239016,-360086.45608435,0.0003,2]
[312064403,1705594239026,-10920.58879733,0.0003,3]
[312064405,1705594239035,-32484.73987423,0.0003,3]
[312064407,1705594239043,-682.23213824,0.0003,3]
[312064409,1705594239052,-2491.60757104,0.0003,4]
[312064411,1705594239061,-687.89788967,0.0003,4]
[312064413,1705594239070,-166.666666,0.0003006,2]
[312064414,1705594239081,-500.0,0.00030136,2]
[312064416,1705594239090,-172.090076,0.00030137,2]
[312064418,1705594239099,-445.077451,0.00030137,2]
[312064420,1705594239108,-500.0,0.00030273,2]
[312064422,1705594239117,-155.0,0.0003037,2]
[312064424,1705594239125,-500.0,0.0003041,2]
[312064426,1705594239134,-243.27736396,0.000305,2]
[312064428,1705594239143,-157.01139444,0.00030548,7]
[312064430,1705594239152,-200.0,0.00030727,15]
[312064432,1705594239161,-161.93,0.00030803,30]
[312064434,1705594239170,-150.5,0.00030813,30]
[312064436,1705594239180,-166.666666,0.00030837,2]
[312064438,1705594239189,-10594.43968142,0.000309,2]
[312064440,1705594239197,-445.077451,0.00030959,2]
[312064441,1705594239207,-299.40501043,0.00031,2]
[312064443,1705594239216,-238.04250494,0.00031,2]
[312064445,1705594239225,-152.81771345,0.00031085,7]
[312064447,1705594239234,-155.29605261,0.00031233,2]
[312064449,1705594239243,-214.59899901,0.00031445,2]
[312064451,1705594239252,-1326.74044833,0.00031445,2]
[312064452,1705594239261,-581.37402506,0.00031445,2]
[312064454,1705594239269,-295.58681685,0.00031509,5]
[312064456,1705594239280,-55475.48509137,0.00031509,5]
[312064459,1705594239296,-29239.13225677,0.00031509,5]
[312064461,1705594239304,-500.0,0.00031527,2]
[312064463,1705594239313,-500.0,0.00031527,2]
[312064465,1705594239322,-500.0,0.00031527,2]
[312064467,1705594239331,-500.0,0.00031527,2]
[312064469,1705594239340,-399.67151693,0.00031527,2]
[312064471,1705594239349,-500.0,0.00031527,2]
[312064473,1705594239358,-375.48147981,0.00031527,2]
[312064475,1705594239366,-40090.10154501,0.00031528,5]
[312064477,1705594239375,-166.666666,0.00031614,2]
[312064479,1705594239385,-5096.8388151,0.00031649,2]
[312064481,1705594239394,-155.0,0.0003174,2]
[312064482,1705594239403,-445.077451,0.00031781,2]
[312064484,1705594239412,-134051.19215932,0.00032,15]
[312064485,1705594239420,-3133.37588219,0.00032,2]
[312064487,1705594239429,-157.01139444,0.00032077,7]
[312064489,1705594239439,-166.666666,0.00032391,2]
[312064491,1705594239447,-3035.34150838,0.000325,15]
[312064493,1705594239459,-170.82124155,0.00032501,7]
[312064495,1705594239468,-155.29605261,0.00032567,2]
[312064497,1705594239477,-150.0,0.000326,4]
[312064499,1705594239486,-445.077451,0.00032603,2]
[312064501,1705594239495,-157.01139444,0.00032823,7]
[312064503,1705594239505,-950.0,0.00032876,2]
[312064505,1705594239514,-673.978437,0.00032947,2]
[312064507,1705594239523,-434.744511,0.00032947,2]
[312064509,1705594239532,-152.81771345,0.00032995,7]
[312064511,1705594239541,-386.32476631,0.00033,2]
[312064513,1705594239550,-2025.74284634,0.00033,2]
[312064514,1705594239558,-469.6351844,0.00033,3]
[312064516,1705594239568,-157.01139444,0.0003304,7]
[312064518,1705594239577,-155.0,0.0003311,2]
[312064520,1705594239587,-950.0,0.0003315,2]
[312064522,1705594239597,-673.978437,0.00033359,2]
[312064524,1705594239607,-434.744511,0.00033359,2]
[312064526,1705594239617,-950.0,0.00033424,2]
[312064528,1705594239625,-445.077451,0.00033425,2]
[312064530,1705594239634,-157.01139444,0.00033452,7]
[312064532,1705594239643,-157.01139444,0.00033461,7]
[312064534,1705594239652,-152.81771345,0.0003362,7]
[312064536,1705594239661,-152.81771345,0.00033624,7]
[312064538,1705594239671,-950.0,0.00033698,2]
[312064540,1705594239681,-673.978437,0.0003377,2]
[312064542,1705594239691,-434.744511,0.0003377,2]
[312064544,1705594239702,-237.0,0.000338,15]
[312064547,1705594239713,-152.81771345,0.00033885,7]
[312064549,1705594239723,-155.29605261,0.000339,2]
[312064551,1705594239732,-950.0,0.00033972,2]
[312064553,1705594239741,-97008.73081987,0.00033989,4]
[312064555,1705594239750,-500.0,0.00033999,4]
[312064556,1705594239760,-608.36744869,0.00033999,4]
[312064558,1705594239769,-500.0,0.00033999,4]
[312064560,1705594239779,-294.59443179,0.00033999,4]
[312064562,1705594239788,-500.0,0.00033999,4]
[312064565,1705594239798,-544.90109924,0.00033999,4]
[312064567,1705594239809,-456.28712924,0.00033999,4]
[312064569,1705594239818,-500.0,0.00033999,4]
[312064571,1705594239828,-472.05023865,0.00033999,4]
[312064572,1705594239838,-500.0,0.00033999,4]
[312064574,1705594239847,-500.0,0.00033999,4]
[312064576,1705594239856,-500.0,0.00033999,4]
[312064579,1705594239866,-500.0,0.00033999,4]
[312064580,1705594239875,-500.0,0.00033999,4]
[312064582,1705594239885,-500.0,0.00033999,7]
[312064584,1705594239895,-500.0,0.00033999,7]
[312064586,1705594239904,-500.0,0.00033999,7]
[312064588,1705594239913,-174.7536377,0.00033999,7]
[312064590,1705594239922,-500.0,0.00033999,7]
[312064592,1705594239931,-281.61110986,0.00033999,7]
[312064594,1705594239940,-25153.93120552,0.00034,2]
[312064596,1705594239949,-26030.47590095,0.00034,2]
[312064598,1705594239958,-1000.0,0.00034,34]
[312064600,1705594239967,-187.93276,0.00034078,2]
[312064602,1705594239976,-673.978437,0.00034182,2]
[312064604,1705594239985,-434.744511,0.00034182,2]
[312064606,1705594239994,-950.0,0.00034246,2]
[312064608,1705594240003,-445.077451,0.00034247,2]
[312064610,1705594240012,-152.81771345,0.00034282,7]
[312064612,1705594240021,-152.81771345,0.00034392,7]
[312064614,1705594240030,-157.01139444,0.00034403,7]
[312064617,1705594240039,-263.54542461,0.0003448,2]
[312064619,1705594240049,-10799.91264334,0.000345,7]
[312064620,1705594240058,-950.0,0.0003452,2]
[312064622,1705594240067,-673.978437,0.00034594,2]
[312064624,1705594240076,-434.744511,0.00034594,2]
[312064626,1705594240086,-157.01139444,0.00034639,7]
[312064628,1705594240094,-3913.62461987,0.00034793,2]
[312064630,1705594240103,-950.0,0.00034794,2]
[312064632,1705594240112,-1600.0,0.0003499,6]
[312064634,1705594240121,-2977.62957927,0.00035,4]
[312064636,1705594240129,-475.72668137,0.00035,4]
[312064638,1705594240138,-154.95351395,0.00035,4]
[312064640,1705594240147,-1104.18339118,0.00035,14]
[312064642,1705594240156,-13389.41685139,0.00035,4]
[312064644,1705594240165,-2456.30202796,0.00035,15]
[312064646,1705594240174,-845.27485417,0.00035,2]
[312064648,1705594240182,-75851.36457803,0.00035,15]
[312064650,1705594240191,-20000.0,0.00035,3]
[312064652,1705594240200,-10158.61832774,0.00035,2]
[312064654,1705594240209,-88708.72807451,0.00035,2]
[312064656,1705594240218,-154.95351395,0.00035,2]
[312064658,1705594240227,-154.95351395,0.00035,4]
[312064660,1705594240237,-6760.97413379,0.00035,4]
[312064662,1705594240246,-1000.0,0.00035,35]
[312064664,1705594240255,-150.0,0.00035,8]
[312064666,1705594240265,-2354.33535012,0.00035,2]
[312064668,1705594240274,-3279.57264357,0.00035,45]
[312064670,1705594240283,-154.95351395,0.00035,4]
[312064672,1705594240293,-156.26613286,0.00035,6]
[312064674,1705594240302,-201.93942625,0.00035,2]
[312064676,1705594240311,-157.79212316,0.00035,2]
[312064678,1705594240320,-1004.53357033,0.00035,7]
[312064680,1705594240329,-563.33668439,0.00035,2]
[312064682,1705594240338,-950.0,0.00035068,2]
[312064684,1705594240346,-445.077451,0.00035068,2]
[312064686,1705594240355,-154.81467578,0.00035323,7]
[312064688,1705594240364,-950.0,0.00035342,2]
[312064690,1705594240373,-500.0,0.00035616,2]
[312064692,1705594240382,-500.0,0.00035616,2]
[312064694,1705594240391,-500.0,0.00035616,2]
[312064696,1705594240399,-500.0,0.00035616,2]
[312064697,1705594240408,-500.0,0.00035616,2]
[312064699,1705594240417,-500.0,0.00035616,2]
[312064702,1705594240426,-500.0,0.00035616,2]
[312064703,1705594240436,-500.0,0.00035616,2]
[312064705,1705594240445,-500.0,0.00035616,2]
[312064707,1705594240454,-500.0,0.00035616,2]
[312064709,1705594240464,-500.0,0.00035616,2]
[312064711,1705594240474,-500.0,0.00035616,2]
[312064714,1705594240483,-500.0,0.00035616,2]
[312064715,1705594240492,-500.0,0.00035616,2]
[312064717,1705594240501,-500.0,0.00035616,2]
[312064719,1705594240510,-500.0,0.00035616,2]
[312064721,1705594240519,-265.24894371,0.00035616,2]
[312064724,1705594240529,-631.69416237,0.00035616,2]
[312064725,1705594240538,-950.0,0.00035616,2]
[312064727,1705594240547,-150.95004265,0.00035616,7]
[312064729,1705594240556,-1284.880037,0.00035616,120]
[312064731,1705594240565,-201.93942625,0.000357,2]
[312064733,1705594240574,-950.0,0.0003589,2]
[312064736,1705594240583,-172.090076,0.0003589,2]
[312064738,1705594240593,-445.077451,0.0003589,2]
[312064740,1705594240602,-1000.0,0.00036,36]
[312064742,1705594240611,-157.01139444,0.00036058,7]
[312064744,1705594240620,-1598.950312,0.00036097,2]
[312064746,1705594240629,-1244.392782,0.00036097,2]
[312064749,1705594240638,-950.0,0.00036164,2]
[312064751,1705594240647,-157.01139444,0.0003623,7]
[312064754,1705594240656,-253.71495932,0.0003624,2]
[312064767,1705594240737,-201.95961414,0.000364,2]
[312064769,1705594240746,-201.93942625,0.000364,2]
[312064770,1705594240763,-950.0,0.00036438,2]
[312064771,1705594240776,-152.81771345,0.00036442,7]
[312064772,1705594240786,-1598.950312,0.00036548,2]
[312064773,1705594240799,-1244.392782,0.00036548,2]
[312064774,1705594240810,-428.744075,0.00036575,4]
[312064775,1705594240820,-152.81771345,0.00036634,7]
[312064776,1705594240829,-950.0,0.00036712,2]
[312064777,1705594240838,-445.077451,0.00036712,2]
[312064778,1705594240848,-210.21085426,0.00036919,10]
[312064779,1705594240858,-152.81771345,0.00036974,7]
[312064780,1705594240867,-1598.950312,0.00036999,2]
[312064781,1705594240877,-1244.392782,0.00036999,2]
[312064782,1705594240887,-4737.91512731,0.00037,8]
[312064783,1705594240896,-418.80217228,0.00037,2]
[312064784,1705594240906,-1000.0,0.00037,37]
[312064785,1705594240915,-242.3273115,0.000371,5]
[312064786,1705594240925,-152.81771345,0.00037109,7]
[312064787,1705594240934,-216.9676031,0.0003724,2]
[312064788,1705594240944,-157.01139444,0.0003738,7]
[312064789,1705594240953,-1598.950312,0.0003745,2]
[312064790,1705594240964,-1244.392782,0.0003745,2]
[312064791,1705594240973,-154.81467578,0.0003746,7]
[312064792,1705594240983,-242.743,0.00037497,2]
[312064793,1705594240992,-445.077451,0.00037534,2]
[312064794,1705594241001,-252.8394801,0.00037645,2]
[312064796,1705594241011,-128617.28811924,0.00037645,2]
[312064798,1705594241021,-116791.50215625,0.00037645,2]
[312064800,1705594241030,-21153.91087553,0.00037645,2]
[312064802,1705594241040,-242.3273115,0.000378,5]
[312064804,1705594241049,-1598.950312,0.00037902,2]
[312064807,1705594241059,-1244.392782,0.00037902,2]
[312064809,1705594241069,-283.23014319,0.00037999,7]
[312064811,1705594241079,-500.0,0.00037999,7]
[312064813,1705594241088,-456.27558652,0.00037999,7]
[312064815,1705594241098,-500.0,0.00037999,7]
[312064817,1705594241107,-500.0,0.00037999,7]
[312064819,1705594241117,-500.0,0.00037999,7]
[312064821,1705594241126,-283.67582443,0.00037999,7]
[312064823,1705594241136,-342.21534693,0.00037999,7]
[312064825,1705594241146,-500.0,0.00037999,7]
[312064827,1705594241155,-500.0,0.00037999,7]
[312064829,1705594241165,-500.0,0.00037999,7]
[312064831,1705594241174,-10837.95274509,0.00038,3]
[312064833,1705594241184,-3923.20884879,0.00038,2]
[312064835,1705594241193,-2793.76201869,0.00038,14]
[312064837,1705594241203,-20000.0,0.00038,4]
[312064839,1705594241214,-3184.89020531,0.00038,7]
[312064841,1705594241223,-154.95351395,0.00038,2]
[312064843,1705594241233,-1000.0,0.00038,38]
[312064845,1705594241242,-5000.0,0.00038126,2]
[312064847,1705594241252,-157.01139444,0.00038346,7]
[312064849,1705594241261,-445.077451,0.00038356,2]
[312064851,1705594241270,-2137.88596785,0.000385,4]
[312064853,1705594241279,-51800.0,0.000385,60]
[312064855,1705594241289,-389.76966348,0.000385,8]
[312064857,1705594241298,-152.81771345,0.00038837,7]
[312064859,1705594241308,-157.01139444,0.00038845,7]
[312064861,1705594241318,-157.01139444,0.00038935,7]
[312064863,1705594241327,-157.01139444,0.00038992,7]
[312064865,1705594241337,-5499.99999004,0.00039,2]
[312064867,1705594241346,-1000.0,0.00039,39]
[312064869,1705594241356,-7947.17037755,0.00039,5]
[312064871,1705594241366,-582.88594571,0.00039,5]
[312064873,1705594241375,-445.077451,0.00039178,2]
[312064875,1705594241384,-1000.0,0.00039334,10]
[312064876,1705594241393,-5000.0,0.00039358,7]
[312064878,1705594241403,-17957.6498,0.00039453,7]
[312064879,1705594241412,-50000.0,0.00039598,7]
[312064880,1705594241421,-249.85240549,0.000396,30]
[312064881,1705594241430,-6921.22266336,0.0003999,4]
[312064883,1705594241439,-154.95351395,0.0004,4]
[312064885,1705594241448,-500.0,0.0004,10]
[312064887,1705594241457,-154.95351395,0.0004,4]
[312064889,1705594241466,-738.12683061,0.0004,2]
[312064891,1705594241475,-1919.56123507,0.0004,4]
[312064893,1705594241484,-5000.0,0.0004,2]
[312064896,1705594241494,-719.46157424,0.0004,2]
[312064898,1705594241503,-8893.38699722,0.0004,15]
[312064899,1705594241514,-301.91589292,0.0004,2]
[312064901,1705594241523,-2716.84535538,0.0004,2]
[312064903,1705594241533,-16207.55387816,0.0004,10]
[312064905,1705594241542,-168.22710666,0.0004,2]
[312064907,1705594241551,-150.0,0.0004,32]
[312064909,1705594241560,-172.90395437,0.0004,4]
[312064911,1705594241570,-160.00065443,0.0004,4]
[312064913,1705594241579,-157.73328411,0.0004,4]
[312064915,1705594241588,-1000.0,0.0004,15]
[312064916,1705594241597,-1000.0,0.0004,30]
[312064918,1705594241607,-1816.62824705,0.0004,30]
[312064920,1705594241616,-450.0,0.0004,15]
[312064921,1705594241625,-1000.0,0.0004,40]
[312064923,1705594241634,-445.077451,0.0004,2]
[312064924,1705594241643,-152.81771345,0.00040109,30]
[312064927,1705594241653,-1500.0,0.000402,3]
[312064929,1705594241662,-152.81771345,0.0004025,30]
[312064931,1705594241671,-152.81771345,0.00040435,30]
[312064933,1705594241680,-154.81467578,0.00040678,30]
[312064935,1705594241689,-150.0,0.00040715,4]
[312064937,1705594241698,-152.81771345,0.00040734,30]
[312064939,1705594241707,-150.95471359,0.00040743,2]
[312064941,1705594241716,-445.077451,0.00040822,2]
[312064943,1705594241725,-152.81771345,0.00040827,30]
[312064944,1705594241735,-11226.75463028,0.00040895,12]
[312064947,1705594241744,-25460.46704236,0.00040971,10]
[312064949,1705594241753,-23181.87896593,0.00040976,10]
[312064962,1705594241876,-2278.58807643,0.00040976,10]
[312064964,1705594241886,-7924.26144645,0.00040995,5]
[312065147,1705594243546,-570.87201765,0.00035,4]
[312065149,1705594243555,-27798.829152,0.00040995,5]
[312065150,1705594243564,-45.49992494,0.00040995,10]
[312065398,1705594246971,-269.80346674,0.00034999,4]
[312065399,1705594246981,-246.29856246,0.00040994,4]
[312065400,1705594246990,-25414.96711742,0.00040995,10]
[312065401,1705594246999,-25460.46704236,0.00040995,10]
[312065402,1705594247009,-4336.59802954,0.00041,10]
[312065403,1705594247018,-22359.87581997,0.00041,10]
[312065404,1705594247027,-198.52508774,0.00041,5]
[312065405,1705594247037,-1000.0,0.00041,30]
[312065407,1705594247047,-1000.0,0.00041,41]
[312065409,1705594247056,-1720.5497676,0.00041,15]
[312065411,1705594247070,-18424.81526802,0.00041,15]
[312065413,1705594247079,-1322.96960089,0.00041,15]
[312065415,1705594247088,-13993.00188604,0.00041015,5]
[312065417,1705594247099,-340.47942235,0.00041021,5]
[312065419,1705594247108,-152.81771345,0.00041032,30]
[312065421,1705594247117,-151.0,0.00041036,21]
[312065423,1705594247127,-151.0,0.00041072,21]
[312065425,1705594247136,-500.0,0.00041095,2]
[312065427,1705594247145,-331.33318827,0.00041095,30]
[312065429,1705594247155,-147.52778205,0.00041095,30]
[312068368,1705594369340,-1467.3149296,0.0003082,4]
[312068369,1705594369360,-150.96428594,0.00030853,7]
[312068370,1705594369381,-152.54364821,0.0003096,7]
[312068371,1705594369400,-172.97576769,0.00030999,2]
[312068372,1705594369420,-4801.01234775,0.00031,5]
[312068373,1705594369439,-152.54364821,0.00031082,7]
[312068374,1705594369462,-500.0,0.00031527,2]
[312068375,1705594369483,-438.50979007,0.00031527,2]
[312068376,1705594369503,-455.81832443,0.00031527,2]
[312068377,1705594369523,-432.37919386,0.00031527,2]
[312068378,1705594369545,-206.04326019,0.00031527,2]
[312068379,1705594369566,-500.0,0.00031527,2]
[312068380,1705594369589,-618.16370499,0.00031527,2]
[312068381,1705594369609,-150.96428594,0.00032217,7]
[312068382,1705594369631,-154.81467579,0.00032396,7]
[312068383,1705594369652,-150.96428594,0.00032674,7]
[312068384,1705594369672,-150.96428594,0.00032721,7]
[312068385,1705594369691,-150.96428594,0.00032729,7]
[312068386,1705594369715,-386.32476631,0.00033,2]
[312068387,1705594369735,-150.96428594,0.0003336,7]
[312068388,1705594369756,-152.54364821,0.00033415,7]
[312068389,1705594369777,-154.95351395,0.00033739,5]
[312068390,1705594369797,-150.96428594,0.0003374,7]
[312068391,1705594369819,-152.54364821,0.00033814,7]
[312068392,1705594369912,-154.95351395,0.00033998,4]
[312068393,1705594369934,-471.33694125,0.00033999,2]
[312068394,1705594369955,-365.71538473,0.00033999,4]
[312068395,1705594369976,-500.0,0.00033999,7]
[312068396,1705594369996,-187.93276717,0.00033999,7]
[312068397,1705594370018,-213.62277874,0.00033999,7]
[312068398,1705594370045,-500.0,0.00033999,7]
[312068399,1705594370066,-157.9218674,0.00034,2]
[312068400,1705594370090,-2000.0,0.00034029,2]
[312068401,1705594370112,-152.54364821,0.00034629,7]
[312068402,1705594370136,-430.86875032,0.0003499,6]
[312068403,1705594370159,-150.96428594,0.00035017,7]
[312068404,1705594370182,-152.54364821,0.00035574,7]
[312068405,1705594383015,386.32476631,0.00033,2]
[312068406,1705594383142,154.95351395,0.00033789,5]
[312068407,1705594389014,195.1690538,0.00035574,4]
[312068408,1705594396229,81.91421097,0.00035574,4]
[312068409,1705594441485,-151.2478173,0.00031908,2]
[312068410,1705594441508,-386.32476631,0.00033,2]
[312068411,1705594441530,-12243.87665029,0.00033795,5]
[312068412,1705594441552,-5000.0,0.00034793,2]
[312068413,1705594441577,-166.666666,0.00034897,2]
[312068414,1705594441597,-328.49860402,0.00035574,4]
[312068415,1705594441618,-2451.53804453,0.00035574,2]
[312068416,1705594441641,-283.01176432,0.00035574,3]
[312068417,1705594441663,-650.89335401,0.00035574,4]
[312068418,1705594441684,-351.14579978,0.00035574,4]
[312068419,1705594441705,-195.1690538,0.00035574,4]
[312068420,1705594443846,1819.21544079,0.00035563,2]
[312068421,1705594449650,154.95351395,0.00035848,5]
[312068422,1705594452231,410.41281499,0.00035574,4]
[312068423,1705594455403,2103.04570991,0.00035574,2]
[312068424,1705594505434,-700.0,0.00031479,2]
[312068425,1705594505460,-386.32476631,0.00033,2]
[312068426,1705594505485,-1957.67523369,0.00033794,4]
[312068428,1705594571809,-2491.60757104,0.00031536,4]
[312068429,1705594571832,-44742.83831768,0.00031537,5]
[312068430,1705594571852,-950.0,0.00032876,2]
[312068431,1705594571872,-386.32476631,0.00033,2]
[312068432,1705594571892,-950.0,0.0003315,2]
[312068433,1705594571913,-950.0,0.00033424,2]
[312068434,1705594571937,-950.0,0.00033698,2]
[312068435,1705594571957,-1819.21544079,0.00033784,2]
[312068436,1705594571978,-351.14579978,0.00033794,4]
[312068437,1705594572003,-650.89335401,0.00033794,4]
[312068438,1705594572025,-410.41281499,0.00033794,4]
[312068439,1705594572050,-283.01176432,0.00033794,3]